Cogmind - Beta 11.1 @@@ ROGUE MODE // 2022.08.27 @ 15:39:07 Player: Triffids Result: Self-destructed Performance ------------- Evolutions (1) 500 Regions Visited (2) 400 Robots Destroyed (24) 120 Value Destroyed (654) 654 Prototype IDs (5) 100 Alien Tech Used (0) 0 Bonus (0) 0 TOTAL SCORE: 1774 Bonus ------- None Cogmind --------- Core Integrity 189/400 Matter 300/300 Energy 265/265 System Corruption 0% Temperature Cool (0) Movement Walking (120) Location -9/Materials Parts ------- > --- POWER (1) -------- Improved Ion Engine > --- PROPULSION (4) --- Aluminum Leg Aluminum Leg Aluminum Leg > --- UTILITY (2) ------ Cooling System Medium Storage Unit > --- WEAPON (2) ------- Beam Rifle Improved Light Cannon > --- INVENTORY (10) --- Ion Engine Light Ion Engine Improved Sensor Array Light Armor Plating Light Armor Plating Light Armor Plating Hacking Suite Heavy Assault Rifle Improved Light Cannon Peak State ------------ > --- POWER ------------ Improved Ion Engine > --- PROPULSION ------- Aluminum Leg Aluminum Leg Aluminum Leg Aluminum Leg > --- UTILITY ---------- Cooling System Small Storage Unit > --- WEAPON ----------- Beam Rifle Improved Light Cannon > --- INVENTORY -------- Light Ion Engine Light Armor Plating Light Armor Plating Hacking Suite Beam Rifle Improved Light Cannon [Rating: 14] Favorites ----------- Power Light Ion Engine Engine Light Ion Engine Propulsion Aluminum Leg Leg Aluminum Leg Utility Small Storage Unit Device Cooling System Storage Small Storage Unit Protection Light Armor Plating Weapon Beam Rifle Energy Gun Beam Rifle Ballistic Gun Assault Rifle Ballistic Cannon Improved Light Cannon Build | -11 -10 -9 ------- Run | Scr Mat Mat Slots Evolved 2 | . . 2 Power . | . . . Propulsion 2 | . . 2 Utility . | . . . Weapon . | . . . Parts Attached 29 | 6 15 8 Power 5 | 1 3 1 Engine 5 | 1 3 1 Core . | . . . Reactor . | . . . Propulsion 7 | 2 3 2 Treads . | . . . Leg 7 | 2 3 2 Wheel . | . . . Hover . | . . . Flight . | . . . Utility 6 | 1 1 4 Device 2 | . 1 1 Storage 3 | 1 . 2 Processor . | . . . Hackware . | . . . Protection 1 | . . 1 Artifact . | . . . Weapon 11 | 2 8 1 Energy Gun 9 | 1 7 1 Energy Cannon . | . . . Ballistic Gun 1 | 1 . . Ballistic Cannon 1 | . 1 . Launcher . | . . . Special Weapon . | . . . Impact Weapon . | . . . Slashing Weapon . | . . . Piercing Weapon . | . . . Special Melee Weapon . | . . . Unidentified Prototypes . | . . . Parts Lost 9 | . 6 3 Power 2 | . 2 . Propulsion 2 | . 1 1 Utility 1 | . . 1 Weapon 4 | . 3 1 Highest Loss Streak 2 | . 2 2 To Critical Strikes . | . . . Average Slot Usage (%) 94 | . 91 99 Engine 12 | . 13 11 Leg 33 | . 28 43 Device 8 | . 7 11 Storage 11 | . 14 8 Protection 1 | . . 2 Energy Gun 16 | . 19 11 Ballistic Gun 3 | . 6 . Ballistic Cannon 4 | . 1 11 Naked Turns . | . . . Heaviest Build 26 | 12 16 26 Greatest Support 40 | 20 20 40 Greatest Overweight (x) 3 | 3 1 . Average Overweight (x) . | . . . Largest Inventory Capacity 10 | 8 8 10 Average Capacity 7 | 7 8 7 Most Carried 9 | 5 8 9 Average Carried 5 | 2 5 6 Final Capacity 10 | 8 8 10 Final Carried 9 | 2 8 9 Class Distribution -------------------- 87% | Mutant 12% | Scavenger-Mutant Dominant Class ---------------- Mutant | -10/Materials Mutant | -9/Materials Resources | -11 -10 -9 ----------- Run | Scr Mat Mat Matter Collected 687 | 206 244 237 Remotely . | . . . Salvage Created 958 | . 450 508 Parts 47 | . 20 27 Haulers Intercepted 1 | . . 1 Recyclers Shooed 3 | . 3 . Parts Field Recycled . | . . . Retrieved Matter . | . . . Parts Self-Destructed . | . . . Prevented . | . . . Kills | -11 -10 -9 ------- Run | Scr Mat Mat Combat Hostiles Destroyed 17 | . 9 8 Guns 12 | . 8 4 Cannons 4 | . . 4 AOE 1 | . 1 . Classes Destroyed 8 | . 4 4 Hauler 1 | . . 1 Recycler 3 | . . 3 Mechanic 1 | . 1 . Operator 1 | . 1 . Watcher 1 | . 1 . Swarmer 3 | . . 3 Grunt 10 | . 9 1 Sentry 4 | . . 4 Best Kill Streak 7 | . 3 7 Combat Bots Only 6 | . 3 6 Max Kills in Single Turn 1 | . 1 1 Gunslinging . | . . . Exploded 1 | . 1 . Melee . | . . . Uniques/NPCs Destroyed . | . . . Combat | -11 -10 -9 -------- Run | Scr Mat Mat Damage Taken 1530 | . 785 745 Core 317 | . 106 211 Absorbed by Shields . | . . . Core Remaining (%) 78 | 100 57 . Volleys Fired 84 | . 48 36 Largest 2 | . 2 2 Hottest 105 | . 105 95 Shots Fired 163 | . 91 72 Gun 126 | . 90 36 Cannon 37 | . 1 36 Launcher . | . . . Special . | . . . Kinetic 65 | . 29 36 Thermal 90 | . 54 36 Explosive . | . . . Electromagnetic 8 | . 8 . Robot Hit Streak 9 | . 9 7 Robot Miss Streak 5 | . 2 5 Penetration Max . | . . . Secondary Targets 2 | . 2 . Max Gunslinging Chain 1 | . 1 . Shots Hit Robots 112 | . 68 44 Core Hits 38 | . 25 13 Critical Kills . | . . . Critical Parts Destroyed . | . . . Critical Strikes 3 | . 2 1 Burn 3 | . 2 1 Melee Attacks . | . . . Impact . | . . . Slashing . | . . . Piercing . | . . . Sneak Attacks . | . . . Combat Hostiles . | . . . Follow-up Attacks . | . . . Damage Inflicted 1731 | . 929 802 Guns 1285 | . 910 375 Cannons 446 | . 19 427 Explosions . | . . . Melee . | . . . Ramming . | . . . Kinetic 730 | . 303 427 Thermal 946 | . 571 375 Explosive . | . . . Electromagnetic 55 | . 55 . Impact . | . . . Slashing . | . . . Piercing . | . . . Highest Corruption . | . . . Average Corruption . | . . . Corruption Purged . | . . . Corruption Blocked . | . . . Overload Shots . | . . . Overflow Damage . | . . . Projectiles . | . . . Explosions . | . . . Melee . | . . . Knockbacks 3 | . . 3 Impact . | . . . Kinetic 3 | . . 3 Secondary . | . . . Self-Inflicted Damage . | . . . Shots . | . . . Rammed . | . . . Targets Rammed . | . . . Kicked . | . . . Crushed . | . . . Highest Temperature 303 | . 303 14 Average Temperature 76 | . 78 6 Received Heat Transfer 609 | . 393 216 Effects 1 | . 1 . Interference 1 | . 1 . Siege Activations . | . . . Robots Corrupted . | . . . Combat Hostiles . | . . . Parts Fried . | . . . Impact Corruptions . | . . . Robots Melted . | . . . Combat Hostiles . | . . . Parts Melted 3 | . 3 . Heat Transferred 2581 | . 1582 999 Parts Sabotaged . | . . . Parts Stolen . | . . . Parts Stripped . | . . . Power Chain Reactions . | . . . Missiles Intercepted . | . . . Alert | -11 -10 -9 ------- Run | Scr Mat Mat Peak Influence 352 | . 261 352 Initial 40 | . . 40 Average 134 | . 97 209 Maximum Alert Level 1 | . 1 1 Low Security (%) 66 | 100 81 38 Level 1 33 | . 18 61 Level 2 . | . . . Level 3 . | . . . Level 4 . | . . . Level 5 . | . . . High Security . | . . . Max Security . | . . . Squads Dispatched 2 | . 1 1 Investigation 1 | . . 1 Extermination . | . . . Reinforcement 1 | . 1 . Assault . | . . . Garrison . | . . . Intercept . | . . . Searches Triggered . | . . . Construction Impeded . | . . . Haulers Reinforced . | . . . Active Scanning Responses . | . . . Cargo Convoy Interrupts . | . . . Stealth | -11 -10 -9 --------- Run | Scr Mat Mat Distress Signals 6 | . 4 2 Communications Jammed . | . . . Distress Signals . | . . . Times Spotted 30 | . 16 14 Peak Tracking Total 6 | . 4 6 Tactical Retreats . | . . . Traps | -11 -10 -9 ------- Run | Scr Mat Mat Traps Triggered 2 | . 1 1 Indirectly . | . . . Trap Hack Attempts . | . . . Triggered . | . . . Disarmed . | . . . Reprogrammed . | . . . Reused . | . . . Traps Extracted . | . . . Installed . | . . . Triggered . | . . . Machines | -11 -10 -9 ---------- Run | Scr Mat Mat Machines Disabled . | . . . Max in Single Turn . | . . . Machines Sabotaged . | . . . Garrisons Compromised . | . . . Overloaded Fab Kills . | . . . Hacking | -11 -10 -9 --------- Run | Scr Mat Mat Machines Accessed 8 | . 6 2 Terminals 6 | . 5 1 Fabricators . | . . . Repair Stations . | . . . Recycling Units 1 | . 1 . Scanalyzers 1 | . . 1 Garrison Access . | . . . Total Hacks 26 | . 20 6 Successful 20 | . 15 5 Failed 6 | . 5 1 Catastrophic . | . . . Database Lockouts . | . . . Manual 15 | . 12 3 Terminals 22 | . 19 3 Fabricators . | . . . Repair Stations . | . . . Recycling Units 1 | . 1 . Scanalyzers 3 | . . 3 Garrison Access . | . . . Terminal Hacks 11 | . 10 1 Robot Analysis 2 | . 2 . Prototype ID Bank 2 | . 2 . Level Access Points 1 | . 1 . Emergency Access Points 1 | . 1 . Terminal Index 1 | . 1 . Hauler Manifests 1 | . 1 . Registered Components 1 | . 1 . Zone Layout 2 | . 1 1 Fabricator Hacks . | . . . Repair Station Hacks . | . . . Recycling Unit Hacks 1 | . 1 . Report Inventory 1 | . 1 . Scanalyzer 2 | . . 2 Insert Component 1 | . . 1 Analyze 1 | . . 1 Garrison Access Hacks . | . . . Unauthorized Hacks 6 | . 4 2 Terminals 5 | . 4 1 Track 1 | . 1 . Botnet 4 | . 3 1 Fabricators . | . . . Repair Stations . | . . . Recycling Units . | . . . Scanalyzers 1 | . . 1 Extract 1 | . . 1 Garrison Access . | . . . Data Cores Recovered . | . . . Used . | . . . Hacking Detections 7 | . 5 2 Full Trace Events . | . . . Feedback Events . | . . . Feedback Blocked . | . . . Robot Schematics Acquired . | . . . Robots Built . | . . . Authchips . | . . . Time . | . . . Total Robot Build Rating . | . . . Part Schematics Acquired 7 | . . 7 Parts Built . | . . . Authchips . | . . . Time . | . . . Total Part Build Rating . | . . . Parts Repaired . | . . . Time . | . . . Parts Recycled . | . . . Recycled Matter . | . . . Retrieved Matter . | . . . Retrieved Components . | . . . Parts Scanalyzed 1 | . . 1 Part Schematics Acquired 1 | . . 1 Parts Damaged . | . . . Bothacking | -11 -10 -9 ------------ Run | Scr Mat Mat Used RIF Installer . | . . . Robots Hacked . | . . . Non-combat . | . . . Combat . | . . . Robot Hacks Applied . | . . . Relay Couplers Released . | . . . Fabnet Peak Effective % . | . . . Robots Rewired . | . . . Allies Hacked . | . . . Hacks Repelled . | . . . Allies | -11 -10 -9 -------- Run | Scr Mat Mat Total Allies . | . . . Largest Group . | . . . Highest-Rated Group . | . . . Highest-Rated Ally . | . . . Total Orders . | . . . Ally Attacks . | . . . Total Damage . | . . . Kills . | . . . Allies Corrupted . | . . . Allies Melted . | . . . Intel | -11 -10 -9 ------- Run | Scr Mat Mat Robot Analysis Total 2 | . 2 . Derelict Logs Recovered . | . . . Drone Launches . | . . . Drone Recoveries . | . . . Exploration | -11 -10 -9 ------------- Run | Scr Mat Mat Turns Passed 1083 | 45 646 392 Spaces Moved 619 | 32 372 215 Core 19 | 19 . . Treads . | . . . Legs 600 | 13 372 215 Wheels . | . . . Hover . | . . . Flight . | . . . Fastest Speed 50 | 50 120 120 Average Speed 119 | 102 120 120 Slowest Speed 200 | 200 190 120 Overloaded Moves . | . . . Propulsion Burnouts . | . . . Robots Hopped . | . . . Cave-ins Triggered . | . . . Exploration Rate (%) 27 | 3 59 20 Regions Visited 2 Branch Regions . Pre-discovered Areas . | . . . Known Exits Taken 1 | . 1 . Unknown Exits Taken 1 | 1 . . Scrap Searched . | . . . Spaces Dug . | . . . Terrain Destroyed 4 | . . 4 Melee . | . . . Projectile 4 | . . 4 AOE . | . . . Terrain Rammed . | . . . Walls Destroyed . | . . . Machines Disabled . | . . . Actions | -11 -10 -9 --------- Run | Scr Mat Mat Total 806 | 42 487 277 Wait 30 | . 24 6 Move 617 | 31 371 215 Hop . | . . . Pick Up 30 | 5 17 8 Fast Attach 6 | 3 2 1 Attach 13 | 3 6 4 Detach 1 | . 1 . Swap 10 | . 7 3 Drop 15 | . 11 4 Fire 84 | . 48 36 Melee . | . . . Ram . | . . . Kick . | . . . Crush . | . . . Escape Stasis . | . . . Rewire . | . . . Trap . | . . . Miscellaneous . | . . . Route ------- -11/Scrapyard -10/Materials (discovered 4 exits: *Mat x3 / [*Min]) -9/Materials History --------- Turn | Location | Event 23 | -11/Scrapyard | Discovered new exit (range 15) 46 | -11/Scrapyard | Entered Materials 274 | -10/Materials | Identified exit to Materials 278 | -10/Materials | Discovered new exit (range 10) 321 | -10/Materials | Build established: Mutant 692 | -10/Materials | Entered another Materials area 692 | -9/Materials | Evolved 2 slots: Propulsion x2 1069 | -9/Materials | Core integrity fell below 50% 1084 | -9/Materials | Self-destructed Last Messages --------------- 01049_ W-16 Scout sends out distress signal. 01050_ K-01 Serf collects debris. 01054_ Aluminum Leg destroyed. 01054_ Critical hit (Burn: +37). 01054_ K-01 Serf collects debris. 01054_ Y-45 Defender destroyed. 01057_ R-06 Scavenger destroyed. 01058_ K-01 Serf collects debris. 01065_ Critical hit (Burn: +37). 01068_ Beam Rifle destroyed. 01068_ K-01 Serf collects debris. 01070_ Y-45 Defender destroyed. 01074_ R-06 Scavenger collects Com. Wheel. 01076_ Acquired Ion Engine. 01078_ Dropped Sml. Storage Unit. 01078_ R-06 Scavenger collects Heat Sink. 01079_ R-06 Scavenger collects Com. Wheel. 01082_ Acquired Lgt. Armor Plating. 01082_ R-06 Scavenger collects Beam Rifle. 01083_ Acquired 46 matter. Map ----- +----------------------------------------------------+ | ?????????????????????????????????????????????????? | | ?????????????????????????????????????????????????? | | ?????????????????????????????????????????????????? | | ?????????????????????????????????????????????????? | | ?????????????????????????????????????????????????? | | ?????????????????????????????????????????????????? | | ?????????????????????????????????????????????????? | | ?????????????????????????????????????????????????? | | ?????????????????????????????????????????????????? | | ?????????????????????????????????????????????????? | | ?????????????????????????????????????????????????? | | ??????????????????? ???????????????????????????? | | ??????????????????# ???????????????????????????? | | ??????????????????# ???????????????????????????? | | ??????????????????# ???????????????????????????? | | ??????????????????# #??????????????????????????? | | ??????????????????# #??????????????????????????? | | ??????????????????# #??????????????????????????? | | ??????????????????# +??????????????????????????? | | ??????????????????# #??????????????????????????? | | ??????????????????+ #??????????????????????????? | | ??????????????????# #??????????????????????????? | | ???????# #????????# #??????????????????????????? | | ??????# ####### !########???????????????????? | | ??????# !/%!!!% ###### ????????? | | ??????# %! =/!%@% ????????? | | ??????# [ r % =r %%r ????????? | | ???????? ####### % #####+####### ????????? | | ??????????????????# #??????????????????????????? | | ??#######??????#### #??????????????????????????? | | ??# ########### #??????????????????????????? | | ??# #??????????????????????????? | | ### #??????????????????????????? | | ## #??????????????????????????? | | ## ###############??????????????????????????? | | ### ##????????????????????????????????????????? | | #?# #?????????????????????????????????????????? | | #?# #?????????????????????????????????????????? | | #?# #?????????????????????????????????????????? | | #?# #?????????????????????????????????????????? | | #?# #?????????????????????????????????????????? | | ### ##????????????????????????????????????????? | | ### #????????????????????????????????????????? | | % ### """"?????????????????????????????????? | | / """"?????????????????????????????????? | | ### ?????????????????????????????? | | ### #???? #????????????????????????????? | | ??### ###??????? #????????????????????????????? | | ????# #????????????#?????????????????????????????? | | ???##/##########??#????? #???????????????????????? | +----------------------------------------------------+ Best States ------------- Heat Dissipation 50 Energy Generation 12 Energy Capacity 265 Matter Stores 300 Matter Capacity 300 Sight Range 16 Terrain Scan Density 10 Armor Coverage 150 Evasion (%) 55 Item Schematics ----------------- Lgt. Armor Plating | -9/Materials | Scanalyzed Sml. Matter Pod | -9/Materials | Extracted Imp. Assault Rifle | -9/Materials | Extracted Hvy. Hammer | -9/Materials | Extracted Trap Extractor | -9/Materials | Extracted Wheel | -9/Materials | Extracted Targeting Computer | -9/Materials | Extracted Robot Schematics ------------------ None Fabricated ------------ Nothing Alien Tech Used ----------------- None Achievements -------------- None Challenges ------------ None Game ------ Seed AdvancedFusionRouter Manual? 0 Play Time 00:14:50 Cumulative 143.9 hours Start 2022.08.27 @ 10:31:37 End 2022.08.27 @ 15:39:07 Sessions 3 Manual Loads 0 Difficulty Rogue Special Mode None Game No. 196 Rogue 196 Adventurer 0 Explorer 0 Win Type - Total 0 Types 0/0/0/0/0/0/0/0/0 Lore% 44 Gallery% 49 Achievement% 33 Wizard Run 0 Options --------- ASCII 0 Keyboard 1 Movement Vi Keybinds 0 Fullscreen 0 Font 20/SmallcapsGlow Map View 76x50 Tactical HUD 1 Map Filters NONE Filters NONE Steam 1 RUN: c4443078-dd69-40ef-9425-922d82480266